[Event "16th Serbian-ch Women 2022"]
[Site "Bajina Basta"]
[Date "2022.12.08"]
[Round "3.5"]
[White "Chelushkina, Irina"]
[Black "Gajcin, Marina"]
[Result "1-0"]
[ECO "B33"]
[WhiteElo "2173"]
[BlackElo "2219"]
[Annotator "TA"]
[PlyCount "97"]
[EventDate "2022.12.06"]
[EventType "tourn"]
[EventCountry "SRB"]
[SourceTitle "playchess.com"]
[Source "ChessBase"]
[SourceQuality "1"]
[TimeControl "40/5400+30:1800+30"]

{[%evp 16,97,22,0,3,9,23,3,18,12,88,91,91,91,106,110,111,95,95,93,114,39,103,33,32,32,86,35,40,32,47,23,40,38,22,17,122,123,108,108,169,148,340,335,320,328,368,385,563,557,495,327,311,324,311,299,235,131,110,55,180,147,254,265,633,633,633,626,619,614,4631,4627,5501,4898,29968,29969,29966,585,29967,29967,29960,9451,5018,4714]} 1. e4 {[%emt 0:00:06]} c5 {[%emt 0:00:14]} 2. Nf3 {[%emt 0:00:04][%cal Bg1f3,Bf3d4,Bd4b5,Bb5a3,Ba3c4][%mdl 32]} Nc6 {[%emt 0:01:41]} 3. d4 {[%emt 0:00:05]} cxd4 {[%emt 0:00:04]} 4. Nxd4 {[%emt 0:00:02]} Nf6 {[%emt 0:01:33]} 5. Nc3 {[%emt 0:00:05]} e5 {[%emt 0:00:53]} 6. Ndb5 {[%emt 0:00:07]} d6 {[%emt 0:00:25]} 7. Nd5 {[%emt 0:00:19]} Nxd5 {[%emt 0:00:58]} 8. exd5 {[%emt 0:00:04]} Nb8 {[%emt 0:00:19]} 9. a4 {[%emt 0:00:23]} a6 {[%emt 0:08:01] B33: Sicilian: Pelikan and Sveshnikov Variations.} 10. Na3 {[%emt 0:01:01]} Nd7 {[%emt 0:00:50]} 11. Nc4 {[%emt 0:01:11]} b6 {[%emt 0:06:00] The position is equal.} 12. a5 {[%emt 0:04:43]} Be7 {[%emt 0:09:56]} (12... b5 $11 {remains equal.} 13. Ne3 Be7) 13. axb6 $16 {[%emt 0:00:22] White is more active.} Nxb6 {[%emt 0:00:32]} 14. Na5 $1 {[%emt 0:00:09] [#]} Bg5 $146 {[%emt 0:01:53]} ({Predecessor:} 14... Qc7 15. Be3 Bb7 16. c4 Nd7 17. Be2 f5 18. f3 Bh4+ 19. g3 f4 20. Bf2 Bg5 {1-0 (38) Sakelsek,T (2395)-Riera Sola,L (2067) Andorra 2005}) 15. Be2 {[%emt 0:14:13]} (15. Nc6 {looks sharper.} Qf6 16. c4 O-O 17. Be2) 15... Bxc1 {[%emt 0:03:04]} 16. Qxc1 {[%emt 0:03:31]} ({Much less strong is} 16. Rxc1 Na4 17. Qd2 O-O) 16... O-O {[%emt 0:09:19]} 17. c4 {[%emt 0:05:57]} Qh4 {[%emt 0:06:08]} 18. Qd2 {[%emt 0:00:13]} (18. O-O $16) 18... Nd7 {[%emt 0:07:13]} (18... f5 $1 $14) 19. g3 {[%emt 0:06:02]} (19. b4 $16) 19... Qh3 $14 {[%emt 0:02:00]} 20. Bf1 {[%emt 0:00:11] Inhibits Qg2.} Qg4 {[%emt 0:00:28]} (20... Qh5 $1 $14) 21. Qe2 {[%emt 0:03:16]} ({Better is} 21. Bg2 $1 $16) 21... Qxe2+ {[%emt 0:08:30]} 22. Bxe2 {[%emt 0:03:24]} Rb8 {[%emt 0:05:51] Against b4} 23. Ra2 {[%emt 0:01:24]} Nc5 {[%emt 0:02:27]} 24. Nc6 $36 {[%emt 0:00:28][%mdl 2048] White is pushing.} Rb3 {[%emt 0:00:58]} 25. O-O {[%emt 0:00:08]} Bh3 {[%emt 0:02:00]} (25... Bb7 $11) 26. Rfa1 $16 {[%emt 0:10:46]} f5 {[%emt 0:02:26]} 27. Bd1 {[%emt 0:00:49] Prevents Bg4.} Rb7 {[%emt 0:01:29]} (27... Rb6 $16 {was necessary.}) 28. b4 $18 {[%emt 0:00:06]} Ne4 {[%emt 0:02:06]} (28... Nd3 $16) 29. f3 {[%emt 0:04:00]} ({But not} 29. Rxa6 g6 30. R6a3 Rd7 $18) 29... Nc3 {[%emt 0:01:18]} 30. Rxa6 {[%emt 0:00:19]} f4 {[%emt 0:03:27]} 31. Ra8 {[%emt 0:01:25] aiming for Rxf8+.} Rbf7 {[%emt 0:00:40]} (31... g5 $142 32. Bc2 Ne2+ 33. Kf2 Nd4) 32. Rxf8+ {[%emt 0:00:21]} Rxf8 {[%emt 0:00:04]} 33. Rc1 {[%emt 0:27:37]} Nxd1 {[%emt 0:03:29]} 34. Rxd1 {[%emt 0:00:01]} fxg3 {[%emt 0:02:25]} 35. hxg3 {[%emt 0:00:02]} Rxf3 {[%emt 0:00:07][%mdl 4096] Endgame KRB-KRN} 36. Kh2 {[%emt 0:00:10] Inhibits h5.} (36. c5 $1 $18 {[%cal Rc5d6]}) 36... Bg4 $16 {[%emt 0:03:31] [#]} 37. c5 {[%emt 0:04:00]} (37. Rb1 $1 $16) 37... e4 {[%emt 0:05:38]} ({Black should try} 37... dxc5 $1 $14 38. bxc5 Rc3) 38. Re1 $18 {[%emt 0:02:21]} e3 {[%emt 0:00:33]} (38... dxc5 $16 {was worth a try.} 39. bxc5 (39. Rxe4 Bf5 $16) 39... e3) 39. cxd6 {[%emt 0:00:39]} Rf6 $2 {[%emt 0:00:53]} (39... h5 40. Kg2 Kh7) 40. Rxe3 {[%emt 0:02:16] Re8+ is the strong threat.} Rxd6 {[%emt 0:00:31]} 41. b5 {[%emt 0:30:50][%cal Bb4b5,Bb5b6][%mdl 32] Threatens to win with b6.} Kf8 {[%emt 0:06:06]} 42. b6 {[%emt 0:00:00] b7 would kill now.} Bc8 {[%emt 0:03:39] [#] Inhibits b7.} 43. Ra3 $1 {[%emt 0:00:00] White threatens Ra8 and mate.} Ke8 {[%emt 0:01:08]} 44. Ra8 {[%emt 0:00:00] White wants to mate with b7.} Kd7 {[%emt 0:00:14] Against b7} 45. Ra7+ {[%emt 0:00:00]} Ke8 {[%emt 0:00:05]} 46. Re7+ {[%emt 0:00:00]} Kf8 {[%emt 0:00:02]} 47. Rc7 {[%emt 0:00:00]} Ba6 {[%emt 0:01:22]} 48. Ra7 {[%emt 0:00:00]} Bc8 {[%emt 0:01:31]} 49. Ra8 {[%emt 0:00:00] Weighted Error Value: White=0.15 (very precise) /Black=0.70} 1-0

[Event "16th Serbian-ch Women 2022"]
[Site "Bajina Basta"]
[Date "2022.12.09"]
[Round "4.1"]
[White "Eric, Jovana"]
[Black "Gajcin, Marina"]
[Result "0-1"]
[ECO "B45"]
[WhiteElo "2245"]
[BlackElo "2219"]
[Annotator "TA"]
[PlyCount "98"]
[EventDate "2022.12.06"]
[EventType "tourn"]
[EventCountry "SRB"]
[SourceTitle "playchess.com"]
[Source "ChessBase"]
[SourceQuality "1"]
[TimeControl "40/5400+30:1800+30"]

{[%evp 12,98,23,0,33,29,30,36,34,14,12,12,25,21,29,-25,0,-17,-10,-10,-2,-6,16,21,22,-14,-20,-16,-22,-27,-37,-118,-55,-51,-52,-104,-87,-129,-106,-129,-100,-84,-54,-83,-54,-214,-99,-98,-92,-96,-77,-115,-115,-115,-108,-108,-108,-108,-108,-230,-214,-337,-298,-1043,-1039,-1592,-1362,-1440,-712,-703,-694,-833,-796,-1106,-1009,-975,-972,-985,-965,-932,-912,-839,-1449,-1132,-1021,-4133,-2875,-1668,-1476]} 1. e4 {[%emt 0:00:03]} c5 {[%emt 0:00:05]} 2. Nf3 {[%emt 0:00:09]} e6 {[%emt 0:00:06]} 3. d4 {[%emt 0:00:09]} cxd4 {[%emt 0:00:06]} 4. Nxd4 {[%emt 0:00:06]} Nc6 {[%emt 0:00:05]} 5. Nc3 {[%emt 0:00:13]} Nf6 {[%emt 0:00:08]} 6. Be2 {[%emt 0:00:11]} Bb4 {[%emt 0:00:17]} 7. O-O {[%emt 0:00:11]} d6 {[%emt 0:00:06] B45: Sicilian Four Knights.} 8. Nxc6 {[%emt 0:02:09]} bxc6 {[%emt 0:00:06]} 9. Qd3 {[%emt 0:00:19]} O-O {[%emt 0:00:16] White is slightly better.} 10. Bg5 {[%emt 0:01:12][%cal Bc1g5,Bg5h4,Bh4g3][%mdl 32]} h6 {[%emt 0:21:22]} 11. Bh4 {[%emt 0:01:48]} g5 {[%emt 0:08:46]} 12. Bg3 {[%emt 0:00:17]} e5 {[%emt 0:00:11] [#] Inhibits f4.} 13. Nd1 $146 {[%emt 0:05:12]} (13. Na4 $142) ({Predecessor:} 13. Na4 Qe7 14. a3 Ba5 15. c4 Bc7 16. Rac1 a5 17. Rfd1 Be6 18. h4 Kg7 19. hxg5 hxg5 {0-1 (50) Boros,D (2442)-Bykhovsky,A (2496) Chess.com INT 2019}) 13... Bc5 {[%emt 0:12:58]} 14. Ne3 {[%emt 0:05:02]} Rb8 {[%emt 0:08:59]} 15. b3 {[%emt 0:06:37]} Qe7 {[%emt 0:03:14]} 16. Rad1 {[%emt 0:07:21]} Rb6 {[%emt 0:05:22]} 17. c3 {[%emt 0:14:19]} a5 {[%emt 0:11:12] Against b4} 18. Qc2 {[%emt 0:05:28]} (18. Nc4 $5 {[%cal Rc4b6]} Ba6 19. Qc2 $11) 18... Bxe3 {[%emt 0:01:47]} 19. fxe3 {[%emt 0:00:06]} Be6 {[%emt 0:02:56]} 20. Qd3 {[%emt 0:03:09][%cal Of1f6]} c5 {[%emt 0:00:52][%cal Oc5c4]} 21. Rb1 {[%emt 0:12:15]} (21. c4 $1 $15) 21... Rfb8 {[%emt 0:03:53]} (21... c4 $17 22. Qc2 (22. bxc4 Rc6 $17) 22... Rfb8 23. Bxc4 (23. bxc4 Rxb1 24. Rxb1 Rxb1+ 25. Qxb1 Qc7 $17) 23... Bxc4 24. bxc4 Rxb1 25. Rxb1 Rxb1+ 26. Qxb1 Qc7) 22. c4 $15 {[%emt 0:02:05]} Kg7 {[%emt 0:00:11]} 23. Bf3 {[%emt 0:05:40]} ({White should try} 23. Bd1 $15) 23... a4 $17 {[%emt 0:02:55]} 24. h3 {[%emt 0:03:04]} axb3 {[%emt 0:00:58]} 25. Rxb3 {[%emt 0:03:06]} Rxb3 {[%emt 0:00:26]} 26. axb3 {[%emt 0:00:06]} Ne8 {[%emt 0:01:10]} 27. Rb1 {[%emt 0:04:29]} Qa7 {[%emt 0:00:54]} 28. Qc3 $2 {[%emt 0:01:51]} (28. Rf1 $15) 28... Rb6 {[%emt 0:02:19]} (28... Qa2 $19 29. Rb2 Qa1+ 30. Kh2 {[#]} Bxc4 $1) 29. Ra1 {[%emt 0:02:58]} Qb7 {[%emt 0:00:18]} 30. Ra3 {[%emt 0:00:23]} Nf6 {[%emt 0:00:33]} 31. Qd3 {[%emt 0:02:08]} h5 {[%emt 0:00:51]} 32. Be1 {[%emt 0:08:18]} g4 {[%emt 0:00:29]} 33. hxg4 {[%emt 0:00:20]} hxg4 {[%emt 0:00:12]} 34. Bd1 {[%emt 0:00:55]} Qxe4 {[%emt 0:00:29] Black is more active.} ({And not} 34... Nxe4 35. Bc2 Bf5 36. Qd1) 35. Qe2 {[%emt 0:00:13]} (35. Qxe4 $17 Nxe4 36. Bc2) 35... Qh7 $19 {[%emt 0:01:35] [#] Hoping for ...Bf5.} 36. Ra8 {[%emt 0:02:24]} (36. e4 {was necessary.}) 36... Bf5 {[%emt 0:01:47] aiming for ...Ne4.} 37. Ra7 $2 {[%emt 0:00:57]} (37. Qf2) 37... Rb8 {[%emt 0:01:42] Black is clearly winning.} 38. e4 {[%emt 0:01:00]} Nxe4 {[%emt 0:00:39]} 39. Bc2 {[%emt 0:00:18]} Nf6 {[%emt 0:05:42]} (39... Rh8 $142 40. Bxe4 Qh2+ 41. Kf2 Qf4+ 42. Kg1 Bxe4) 40. Bxf5 {[%emt 0:02:18]} Qxf5 {[%emt 0:00:04]} 41. Bh4 {[%emt 0:02:33]} Rxb3 {[%emt 0:06:44]} 42. Ra1 {[%emt 0:01:46]} Rb1+ {[%emt 0:02:10]} 43. Rxb1 {[%emt 0:00:04]} Qxb1+ {[%emt 0:00:03][%mdl 4096] Endgame KQB-KQN} 44. Kh2 {[%emt 0:00:05]} Qf5 {[%emt 0:01:44]} 45. Kg1 {[%emt 0:05:37]} Ne4 {[%emt 0:04:32]} 46. Qd3 {[%emt 0:02:11]} Qf4 {[%emt 0:00:58]} 47. Be1 {[%emt 0:01:16]} g3 {[%emt 0:02:21] White must now prevent ...Qh4.} 48. Qe2 {[%emt 0:02:39]} Qh4 {[%emt 0:02:42] ( -> ...Qh2+)} 49. Qf3 {[%emt 0:00:28]} Nf2 {[%emt 0:00:48] Weighted Error Value: White=0.63/Black=0.35} 0-1

[Event "16th Serbian-ch Women 2022"]
[Site "Bajina Basta"]
[Date "2022.12.09"]
[Round "4.2"]
[White "Manakova, Maria"]
[Black "Chelushkina, Irina"]
[Result "0-1"]
[ECO "B32"]
[WhiteElo "2160"]
[BlackElo "2173"]
[Annotator "TA"]
[PlyCount "68"]
[EventDate "2022.12.06"]
[EventType "tourn"]
[EventCountry "SRB"]
[SourceTitle "playchess.com"]
[Source "ChessBase"]
[SourceQuality "1"]
[TimeControl "40/5400+30:1800+30"]

{[%evp 17,68,52,57,52,59,42,46,14,19,0,26,17,27,4,0,0,0,-51,-37,-33,-31,-97,-104,-68,-69,-267,-258,-270,-268,-243,-246,-357,-350,-330,-326,-467,-460,-460,-428,-432,-258,-538,-418,-1616,-1508,-29978,-29978,-29981,-29982,-29981,-29982,-29983,-29983]} 1. e4 {[%emt 0:01:47]} c5 {[%emt 0:00:20]} 2. Nf3 {[%emt 0:00:10][%cal Bg1f3,Bf3d4,Bd4b5,Bb5a3,Ba3c2][%mdl 32]} Nc6 {[%emt 0:00:16]} 3. d4 {[%emt 0:00:07]} cxd4 {[%emt 0:00:05]} 4. Nxd4 {[%emt 0:00:02]} e5 {[%emt 0:00:35]} 5. Nb5 {[%emt 0:00:26]} d6 {[%emt 0:00:05]} 6. N1c3 {[%emt 0:01:45]} a6 {[%emt 0:01:52]} 7. Na3 {[%emt 0:00:04]} b5 {[%emt 0:05:40]} 8. Nd5 {[%emt 0:00:22]} Be7 {[%emt 0:00:49]} 9. Be3 {[%emt 0:28:33]} Rb8 {[%emt 0:04:46]} 10. c4 {[%emt 0:00:10][%cal Rc4b5] B32: Sicilian: Löwenthal and Kalashnikov Variations.} b4 {[%emt 0:00:33]} 11. Nc2 {[%emt 0:00:04]} Nf6 {[%emt 0:02:27]} 12. Nxe7 {[%emt 0:07:48] White is slightly better.} Qxe7 {[%emt 0:02:12]} 13. Be2 {[%emt 0:07:56]} O-O {[%emt 0:01:27] [#]} 14. Qd3 $146 {[%emt 0:08:06]} ({Predecessor:} 14. O-O Be6 15. f3 Nd7 16. Qd2 Nc5 17. Rad1 Rfd8 18. b3 Qf8 19. Bg5 Rd7 20. Ne3 {½-½ (70) Frey,A (2099)-Nobis,A (1830) Germany 2015}) 14... Be6 {[%emt 0:07:41]} 15. Bg5 {[%emt 0:02:59]} h6 {[%emt 0:00:01]} 16. Bxf6 {[%emt 0:03:37]} Qxf6 {[%emt 0:00:53]} 17. Qxd6 {[%emt 0:04:45]} (17. b3 $11) 17... Rbc8 $15 {[%emt 0:01:17] [#] And now ...Rfd8 would win.} 18. Qd2 {[%emt 0:06:46]} (18. Nxb4 $2 Rfd8 19. Nd5 Rxd6 $19) 18... Rfd8 {[%emt 0:10:40]} 19. Qe3 {[%emt 0:00:07]} (19. Qc1 $15) 19... Nd4 $17 {[%emt 0:00:04] Black is much more active. The white rooks are badly placed.} 20. Nxd4 {[%emt 0:00:17]} exd4 {[%emt 0:00:01][%cal Be5d4,Bd4d3][%mdl 32]} 21. Qd2 {[%emt 0:05:07] Loses the game.} (21. Qb3 $15) 21... d3 $1 $19 {[%emt 0:01:14]} (21... Bxc4 22. Bxc4 Rxc4 23. Qd3 $17) 22. Bf3 {[%emt 0:00:28]} Rxc4 {[%emt 0:01:10] [#] Strongly threatening ...Rc2.} ({Worse is} 22... Bxc4 23. O-O $17) 23. O-O {[%emt 0:00:10]} Qd4 {[%emt 0:10:58] White must now prevent ...Rc2.} 24. Rfd1 {[%emt 0:10:50]} (24. Bd1 $142) 24... a5 {[%emt 0:09:27]} ({Avoid the trap} 24... Rc2 $2 25. Qxc2 dxc2 26. Rxd4 Rxd4 27. Rc1 $19) 25. b3 {[%emt 0:02:17]} Rc3 {[%emt 0:00:05]} ({Weaker is} 25... Rc2 26. Qxc2 dxc2 27. Rxd4 Rxd4 28. Rc1 $11) 26. Kf1 {[%emt 0:06:13]} (26. Rac1 $142) 26... Qe5 {[%emt 0:01:28]} 27. g3 {[%emt 0:00:33]} Bh3+ {[%emt 0:06:20]} 28. Kg1 {[%emt 0:00:05]} Qc5 $40 {[%emt 0:04:58][%mdl 128] Black goes for the king.} (28... Rc2 $142 29. Qf4 Qd4) 29. Qf4 {[%emt 0:00:55]} (29. Qe3 {was forced.}) 29... Rc2 {[%emt 0:04:10]} 30. Rd2 {[%emt 0:00:39]} (30. Qe3 $142 Qc3 31. Rdb1) 30... g5 {[%emt 0:01:34]} 31. Rxc2 {[%emt 0:00:03]} dxc2 {[%emt 0:00:13] Black mates.} 32. Qe3 {[%emt 0:00:19]} Qxe3 {[%emt 0:00:45]} 33. fxe3 {[%emt 0:00:03]} Rd2 {[%emt 0:00:16]} 34. g4 {[%emt 0:02:50]} h5 {[%emt 0:01:23] Weighted Error Value: White=0.85/Black=0.16 (very precise)} 0-1

[Event "16th Serbian-ch Women 2022"]
[Site "Bajina Basta"]
[Date "2022.12.09"]
[Round "4.3"]
[White "Drljevic, Ljilja"]
[Black "Vujcic, Milena"]
[Result "0-1"]
[ECO "A45"]
[WhiteElo "2175"]
[BlackElo "2029"]
[Annotator "TA"]
[PlyCount "132"]
[EventDate "2022.12.06"]
[EventType "tourn"]
[EventCountry "SRB"]
[SourceTitle "playchess.com"]
[Source "ChessBase"]
[SourceQuality "1"]
[TimeControl "40/5400+30:1800+30"]

{[%evp 18,132,22,21,33,32,35,33,40,49,47,50,51,22,27,0,0,-55,0,0,0,-59,-67,-69,-65,-130,-80,-88,-6,-17,17,-21,0,0,3,6,8,0,0,-19,-33,-42,0,0,1,1,1,1,0,0,8,0,0,0,8,8,8,8,8,0,0,0,0,0,0,0,0,0,0,0,52,0,0,0,0,0,0,0,0,0,0,0,0,0,0,-29958,-29959,-29950,-397,-29958,-29963,-29961,-29965,-29964,-29966,-29962,-29965,-29969,-29970,-29968,-29971,-29972,-29973,-29975,-29976,-29976,-29977,-29978,-29979,-29979,-29980,-29980,-29981,-29981,-29982,-29982,-29983]} 1. d4 {[%emt 0:00:02]} Nf6 {[%emt 0:00:09]} 2. Bg5 {[%emt 0:03:34]} g6 {[%emt 0:00:32]} 3. Bxf6 {[%emt 0:00:48]} exf6 {[%emt 0:00:07]} 4. e3 {[%emt 0:00:56]} Bg7 {[%emt 0:00:19]} 5. g3 {[%emt 0:01:35]} d6 {[%emt 0:02:40]} 6. Bg2 {[%emt 0:00:16]} f5 {[%emt 0:00:49]} 7. Ne2 {[%emt 0:01:56]} Nd7 {[%emt 0:00:23]} 8. c4 {[%emt 0:00:13]} Nf6 {[%emt 0:00:43]} 9. Nbc3 {[%emt 0:00:09]} O-O {[%emt 0:02:37]} 10. O-O {[%emt 0:01:38]} a6 {[%emt 0:01:00] 10...h5 is becoming the main line. A45: Trompowsky Attack.} 11. b4 {[%emt 0:05:36]} Re8 {[%emt 0:01:30]} 12. Qd3 {[%emt 0:11:23]} Rb8 {[%emt 0:01:01] White is slightly better.} 13. a4 {[%emt 0:11:33] [#]} h5 $146 {[%emt 0:13:09]} ({Predecessor:} 13... Be6 14. a5 d5 15. cxd5 Nxd5 16. b5 axb5 17. Qxb5 c6 18. Qb2 Nxc3 19. Qxc3 Qd7 {½-½ (73) Livaja,M (2298)-Wagner,D (2581) Chess.com INT 2020}) 14. h4 {[%emt 0:04:54]} Ng4 {[%emt 0:01:03]} 15. Nf4 {[%emt 0:11:43]} g5 {[%emt 0:09:58]} 16. Nxh5 {[%emt 0:18:28]} gxh4 {[%emt 0:00:51]} 17. e4 {[%emt 0:00:56]} (17. Nxg7 $11 Kxg7 18. e4) 17... Qg5 {[%emt 0:03:04]} (17... hxg3 $15 18. fxg3 Qg5 19. Nxg7 Kxg7) 18. Nxg7 $11 {[%emt 0:01:28]} Kxg7 {[%emt 0:01:19]} 19. Rfe1 {[%emt 0:11:38]} ({White should try} 19. gxh4 $1 $11 Qxh4 20. Qg3 (20. exf5 $2 Qh2#) 20... Qxg3 21. fxg3) 19... hxg3 $15 {[%emt 0:09:39]} 20. fxg3 {[%emt 0:00:17]} (20. Qxg3 $2 {perishes.} f4 21. Qf3 Nh2 $1 22. Kxh2 Rh8+ 23. Kg1 Rh3 $19) 20... Qh5 {[%emt 0:12:15][%cal Ob7b5] ...b5! is the strong threat.} 21. Qf3 {[%emt 0:03:05] Inhibits b5.} (21. Re2 $1 $15) 21... fxe4 {[%emt 0:15:47]} (21... Rh8 22. Nd5 $15) (21... Be6 $142 22. Nd5 c6) 22. Nxe4 $17 {[%emt 0:00:11]} f5 {[%emt 0:00:16] Really sharp!} ({Better is} 22... Re6 $17 {aiming for ...Bd7.} 23. Qf4 Rg6) 23. Nf2 $11 {[%emt 0:01:00]} Be6 {[%emt 0:06:23] White must now prevent ...Qh2+.} 24. d5 {[%emt 0:03:44]} Bf7 {[%emt 0:00:47]} 25. Nxg4 {[%emt 0:04:33]} Qxg4 {[%emt 0:00:16]} 26. Qxg4+ {[%emt 0:00:23]} (26. Qc3+ {is more complex.} Kg8 27. Kf2 f4 28. Qf3) 26... fxg4 {[%emt 0:00:06]} 27. Kf2 {[%emt 0:01:02]} Kf6 {[%emt 0:02:29]} 28. Ra3 {[%emt 0:00:14]} Rxe1 {[%emt 0:00:24]} 29. Kxe1 {[%emt 0:00:02][%mdl 4096] Endgame KRB-KRB} Re8+ {[%emt 0:00:06]} (29... Ke5 $5 {[%cal Re5d4]}) 30. Kd2 {[%emt 0:01:30]} Bg6 {[%emt 0:01:21]} 31. Re3 {[%emt 0:00:20]} Rxe3 {[%emt 0:00:14]} 32. Kxe3 {[%emt 0:00:02] KB-KB} Ke5 {[%emt 0:00:05]} 33. a5 {[%emt 0:00:35]} Bf5 {[%emt 0:03:18]} 34. Bf1 {[%emt 0:00:24]} Bc8 {[%emt 0:01:45]} 35. Bd3 {[%emt 0:00:26]} b6 {[%emt 0:01:41]} 36. Bg6 {[%emt 0:00:39]} bxa5 {[%emt 0:00:08]} 37. bxa5 {[%emt 0:00:02]} Bd7 {[%emt 0:02:28] Inhibits Be8.} 38. Bh5 {[%emt 0:00:54]} Kf5 $1 {[%emt 0:04:26]} 39. Bf7 {[%emt 0:01:11]} Kf6 {[%emt 0:01:47]} 40. Bh5 {[%emt 0:00:33]} Kg5 {[%emt 0:00:47]} 41. Bf7 {[%emt 0:30:09]} Kf6 {[%emt 0:30:05]} 42. Bg8 {[%emt 0:00:00]} Ke5 {[%emt 0:00:00]} (42... Kg7 $5 43. Be6 $8 Bxe6 44. dxe6 Kf6 $11) 43. Bh7 {[%emt 0:00:00]} c5 {[%emt 0:00:00]} ({Black should play} 43... Bf5 $11 44. Bxf5 Kxf5) 44. Bc2 {[%emt 0:00:00]} (44. dxc6 $1 $14 Bxc6 45. Bd3) 44... Be8 {[%emt 0:00:00]} 45. Bh7 {[%emt 0:00:00]} Bd7 {[%emt 0:00:00]} 46. Bg8 {[%emt 0:00:00]} Bc8 {[%emt 0:00:00]} 47. Bf7 {[%emt 0:00:00]} Bd7 {[%emt 0:00:00]} 48. Bh5 {[%emt 0:00:39]} Kf5 {[%emt 0:00:00]} 49. Kd3 {[%emt 0:00:49]} Ke5 {[%emt 0:00:00]} 50. Bf7 {[%emt 0:00:57]} Kf6 {[%emt 0:00:00]} 51. Bg8 {[%emt 0:00:43][%mdl 8192] Black continues to play with concentration.} (51. Bh5 $11) 51... Kg7 $1 {[%emt 0:00:00]} 52. Be6 {[%emt 0:00:11]} Bxe6 {[%emt 0:00:00]} 53. dxe6 {[%emt 0:00:02] KP-KP} Kf6 {[%emt 0:00:00] Black mates.} 54. e7 {[%emt 0:03:33]} Kxe7 {[%emt 0:00:00]} 55. Ke3 {[%emt 0:00:12]} Ke6 {[%emt 0:00:00]} 56. Kf4 {[%emt 0:00:24]} d5 {[%emt 0:00:00][%cal Bd6d5,Bd5d4][%mdl 32]} 57. Kxg4 {[%emt 0:00:44] [#] K3P-K3P} d4 $1 {[%emt 0:00:00]} ({Not} 57... dxc4 58. Kf4 $11) 58. Kf4 {[%emt 0:00:39]} Kf6 {[%emt 0:00:00]} 59. g4 {[%emt 0:00:29]} Kg6 {[%emt 0:00:00]} 60. g5 {[%emt 0:00:33] [#]} d3 $1 {[%emt 0:00:00]} 61. Ke3 {[%emt 0:00:18]} Kxg5 {[%emt 0:00:00]} 62. Kxd3 {[%emt 0:00:07]} Kf4 {[%emt 0:00:00]} 63. Kd2 {[%emt 0:00:38]} Ke4 {[%emt 0:00:00]} 64. Kc3 {[%emt 0:00:14]} Ke3 {[%emt 0:00:00]} 65. Kc2 {[%emt 0:00:53]} Kd4 {[%emt 0:00:00]} 66. Kb3 {[%emt 0:00:04]} Kd3 {[%emt 0:00:00] Weighted Error Value: White=0.25 (precise) /Black=0.10 (very precise)} 0-1

[Event "16th Serbian-ch Women 2022"]
[Site "Bajina Basta"]
[Date "2022.12.09"]
[Round "4.4"]
[White "Srdanovic, Jovana"]
[Black "Bojicic, Andjela"]
[Result "1/2-1/2"]
[ECO "E90"]
[WhiteElo "2189"]
[BlackElo "2117"]
[Annotator "TA"]
[PlyCount "51"]
[EventDate "2022.12.06"]
[EventType "tourn"]
[EventCountry "SRB"]
[SourceTitle "playchess.com"]
[Source "ChessBase"]
[SourceQuality "1"]
[TimeControl "40/5400+30:1800+30"]

{[%evp 15,51,53,50,59,113,106,110,97,108,89,89,96,85,81,83,87,90,30,75,75,76,17,24,14,12,16,7,19,9,12,19,0,-9,-8,-14,-12,0,-47]} 1. d4 {[%emt 0:00:06]} g6 {[%emt 0:00:07]} 2. c4 {[%emt 0:00:08]} Bg7 {[%emt 0:00:04]} 3. Nc3 {[%emt 0:00:30]} d6 {[%emt 0:00:06]} 4. Nf3 {[%emt 0:00:26]} Nf6 {[%emt 0:01:49]} 5. e4 {[%emt 0:00:23]} O-O {[%emt 0:00:30]} 6. h3 {[%emt 0:01:16]} c6 {[%emt 0:03:48]} 7. Be3 {[%emt 0:03:31]} Nbd7 {[%emt 0:04:12]} 8. Be2 {[%emt 0:06:09]} e5 {[%emt 0:03:18]} 9. d5 {[%emt 0:01:33] E90: King's Indian: Classical: Early deviations and 6 h3.} c5 {[%emt 0:05:35]} (9... cxd5 $14 10. cxd5 Nh5) 10. g4 $16 {[%emt 0:04:38] White is more active.} a6 {[%emt 0:08:29]} 11. Nd2 {[%emt 0:00:51] White is better.} Ne8 {[%emt 0:09:31]} 12. Rg1 {[%emt 0:01:07] [#]} Nc7 $146 {[%emt 0:05:32]} ({Predecessor:} 12... Bf6 13. g5 Be7 14. h4 h5 15. Bxh5 gxh5 16. Qxh5 Ng7 17. Qh6 Re8 18. g6 fxg6 19. Qxg6 {1-0 (27) Guerrero Sierra,J (2339)-Arenas Vanegas,D (2449) Tunja 2018}) 13. a4 {[%emt 0:09:44]} b6 {[%emt 0:05:53]} 14. Bd3 {[%emt 0:06:37]} Rb8 {[%emt 0:04:20]} 15. Qe2 {[%emt 0:05:56]} Nf6 {[%emt 0:07:33][%cal Bd7f6,Bf6g4,Bg4e3][%mdl 32]} 16. h4 {[%emt 0:07:55]} ({White should try} 16. O-O-O $16) 16... Qd7 {[%emt 0:11:10][%cal Rf6g4] [#]} 17. f3 $1 {[%emt 0:06:08][%cal Oh4h5]} h5 {[%emt 0:01:41][%cal Rh5g4]} 18. O-O-O {[%emt 0:15:06]} ({White should play} 18. g5 $16 Nfe8 19. a5) 18... hxg4 $11 {[%emt 0:06:50]} 19. fxg4 {[%emt 0:00:36]} Nxg4 {[%emt 0:03:10] The position is equal.} 20. h5 {[%emt 0:00:47]} Nxe3 $1 {[%emt 0:04:17]} 21. Qxe3 {[%emt 0:00:14] Rg3 is the strong threat.} Qh3 $132 {[%emt 0:00:31][%mdl 2048] Black is fighting back} (21... gxh5 $2 {[#]} 22. Rxg7+ $1 {[%mdl 512]} (22. Qh6 Ne8 $16) 22... Kxg7 23. Qg5+ Kh7 24. Qxh5+ Kg7 25. Rh1 $18) 22. Qxh3 {[%emt 0:02:45]} Bxh3 {[%emt 0:00:04]} 23. Rg3 {[%emt 0:02:17]} Bd7 {[%emt 0:00:37]} 24. hxg6 {[%emt 0:00:47]} fxg6 {[%emt 0:00:49]} 25. Rxg6 {[%emt 0:00:06]} Rf6 {[%emt 0:01:59]} 26. Rdg1 {[%emt 0:00:06] Weighted Error Value: White=0.12 (very precise) /Black=0.07 (flawless)} (26. Rxf6 $11 Bxf6 27. b3) 1/2-1/2